bitfinex/quotes_SOLUSD_20220119
["timestamp","ask_amount","ask_price","bid_price","bid_amount"]
[1642624386364,24.0215,135.82,135.69,26.96652145]
[1642624386763,35.0721,135.82,135.69,26.96652145]
[1642624387262,35.0721,135.82,135.69,20.96652145]
[1642624387667,35.0721,135.82,135.69,19.567]
[1642624388065,23.7715,135.82,135.69,32.01832145]
[1642624388463,23.7715,135.82,135.69,30.6188]
[1642624388863,97.4615,135.82,135.69,30.6188]
[1642624389062,23.7715,135.82,135.69,29.07232145]
[1642624389464,0.25,135.81,135.69,29.07232145]
[1642624389865,0.25,135.81,135.69,27.6728]
[1642624390068,0.25,135.81,135.69,27.4228]
[1642624390668,0.25,135.81,135.72,11.0498]
[1642624394072,23.7715,135.82,135.73,0.25]
[1642624394272,23.7715,135.82,135.74,60.70134426]
[1642624394474,23.3471,135.83,135.74,60.70134426]
[1642624394672,23.3471,135.83,135.75,0.25]
[1642624395280,10.51,135.84,135.75,0.25]
[1642624395575,24.79674022,135.85,135.75,21.8074]
[1642624395774,24.79674022,135.85,135.75,29.20692145]
[1642624396275,22.7446,135.85,135.75,29.20692145]
[1642624396476,2.05214022,135.86,135.76,73.69]
[1642624396680,2.05214022,135.86,135.77,46.52102426]
[1642624396877,28.11753972,135.89,135.79,11.0433]
[1642624396878,2.05214022,135.87,135.79,11.0433]
[1642624397077,2.05214022,135.87,135.8,43.38759118]
[1642624397780,2.05214022,135.88,135.8,43.38759118]
[1642624398679,0.25,135.87,135.8,43.38759118]
[1642624399281,0.25,135.87,135.78,11.0443]
[1642624399481,2.30214022,135.87,135.77,10.76]
[1642624400278,2.05214022,135.86,135.78,38.91725506]
[1642624400478,2.05214022,135.85,135.75,16.51]
[1642624400681,31.59374022,135.85,135.73,10.51]
[1642624400878,2.05214022,135.84,135.73,13.455]
[1642624401078,2.05214022,135.84,135.73,10.51]
[1642624401278,0.25,135.83,135.73,10.51]
[1642624401483,0.25,135.83,135.74,44.65586645]
[1642624402376,11.3003,135.83,135.74,44.65586645]
[1642624404483,0.25,135.83,135.74,55.70386645]
[1642624404682,2.05214022,135.84,135.75,0.25]
[1642624404917,25.34374022,135.85,135.75,12.15952145]
[1642624405114,23.2916,135.85,135.75,21.10452145]
[1642624405313,23.2916,135.85,135.75,18.15952145]
[1642624405713,23.2916,135.85,135.75,16.76]
[1642624406013,25.34374022,135.85,135.75,16.76]
[1642624406214,0.25,135.84,135.75,16.76]
[1642624406414,0.25,135.84,135.75,27.8067]
[1642624407217,2.05214022,135.85,135.75,27.8067]
[1642624407417,2.05214022,135.86,135.76,1.39952145]
[1642624407619,2.05214022,135.87,135.78,11.0447]
[1642624407818,2.05214022,135.87,135.79,0.25]
[1642624408618,26.50674022,135.88,135.79,11.2941]
[1642624408818,26.50674022,135.88,135.8,44.17669373]
[1642624409118,2.05214022,135.87,135.8,44.17669373]
[1642624409319,26.50674022,135.88,135.78,13.454]
[1642624409519,26.50674022,135.88,135.78,10.51]
[1642624409919,2.05214022,135.87,135.79,11.2938]
[1642624410221,26.50674022,135.88,135.79,49.8498527]
[1642624410420,0.25,135.87,135.79,49.8498527]
[1642624412725,2.30214022,135.87,135.79,49.8498527]
[1642624413523,2.05214022,135.87,135.79,49.8498527]
[1642624413924,26.50674022,135.88,135.79,49.8498527]
[1642624414323,2.05214022,135.87,135.79,49.8498527]
[1642624416425,26.50674022,135.88,135.79,49.8498527]
[1642624416624,26.50674022,135.88,135.8,2.944]
[1642624416824,26.50674022,135.88,135.81,11.2921]
[1642624417026,26.50674022,135.88,135.82,45.97636307]
[1642624417226,26.50674022,135.88,135.79,2.944]
[1642624417426,26.50674022,135.88,135.78,10.51]
[1642624417427,2.05214022,135.87,135.78,10.51]
[1642624417625,2.05214022,135.87,135.79,3.194]
[1642624418026,2.05214022,135.87,135.79,14.2375]
[1642624418228,2.05214022,135.87,135.8,44.24396607]
[1642624418424,26.50674022,135.88,135.8,44.24396607]
[1642624418629,26.50674022,135.88,135.81,0.25]
[1642624420927,26.50674022,135.88,135.81,11.2924]
[1642624423633,24.4546,135.88,135.81,11.2924]
[1642624424236,26.04044022,135.89,135.81,11.2924]
[1642624424436,2.05214022,135.88,135.81,11.2924]
[1642624426841,2.05214022,135.88,135.81,14.2364]
[1642624427039,26.04044022,135.89,135.81,14.2364]
[1642624427239,2.05214022,135.89,135.81,24.7464]
[1642624427642,2.05214022,135.89,135.82,1.39952145]
[1642624427839,2.05214022,135.89,135.83,36.89645356]
[1642624428040,2.05214022,135.89,135.84,11.0395]
[1642624428445,2.05214022,135.9,135.84,11.0395]
[1642624431242,2.05214022,135.89,135.84,11.0395]
[1642624431644,2.05214022,135.9,135.84,11.0395]
[1642624434148,2.05214022,135.9,135.83,0.25]
[1642624434349,2.05214022,135.9,135.82,21.5512]
[1642624434350,2.05214022,135.9,135.81,2.944]
[1642624434546,2.30214022,135.89,135.8,10.51]
[1642624434748,2.30214022,135.89,135.81,0.25]
[1642624434949,2.05214022,135.88,135.81,0.25]
[1642624435149,2.05214022,135.88,135.81,49.03267315]
[1642624435349,2.05214022,135.89,135.81,49.03267315]
[1642624435950,2.30214022,135.88,135.81,49.03267315]
[1642624437050,2.05214022,135.88,135.81,49.03267315]
[1642624437250,2.05214022,135.89,135.81,51.97667315]
[1642624438578,2.05214022,135.89,135.81,63.01917315]
[1642624438755,2.05214022,135.88,135.81,73.52917315]
[1642624439154,2.05214022,135.88,135.81,24.7465]
[1642624440054,2.05214022,135.88,135.82,40.12980363]
[1642624440255,2.05214022,135.88,135.83,0.25]
[1642624441757,2.05214022,135.88,135.82,0.25]
[1642624442057,7.10914022,135.88,135.8,2.944]
[1642624442257,0.25,135.87,135.78,2.944]
[1642624442462,0.25,135.87,135.77,36.81073056]
[1642624442463,11.0473,135.85,135.77,36.81073056]
[1642624442863,0.25,135.84,135.77,36.81073056]
[1642624443465,0.25,135.84,135.78,0.25]
[1642624449195,25.28344022,135.85,135.78,0.25]
[1642624449394,25.28344022,135.85,135.78,11.2948]
[1642624449594,2.05214022,135.85,135.8,37.07733357]
[1642624449794,34.2754,135.9,135.81,0.25]
[1642624449795,2.05214022,135.86,135.81,0.25]
[1642624449994,2.05214022,135.87,135.8,37.07733357]
[1642624450196,0.25,135.86,135.79,19.455]
[1642624450397,2.30214022,135.86,135.78,0.25]
[1642624450897,2.05214022,135.85,135.78,0.25]
[1642624451297,2.30214022,135.84,135.74,2.945]
[1642624451501,19.35004022,135.84,135.73,2.945]
[1642624451706,73.69,135.82,135.72,2.945]
[1642624451898,23.5496,135.81,135.72,2.945]
[1642624452096,23.7996,135.81,135.72,2.945]
[1642624452298,23.7996,135.81,135.72,49.19253235]
[1642624452500,23.7996,135.81,135.72,2.945]
[1642624452699,42.5039,135.81,135.72,2.945]
[1642624453198,56.89316624,135.81,135.72,2.945]
[1642624453399,2.05214022,135.8,135.72,2.945]
[1642624453605,11.0537,135.78,135.72,2.945]
[1642624453807,0.25,135.77,135.72,2.945]
[1642624455112,0.25,135.79,135.72,2.945]
[1642624455411,0.25,135.79,135.71,36.32751393]
[1642624455809,0.25,135.79,135.67,2.946]
[1642624456011,23.1144,135.79,135.68,0.25]
[1642624456411,11.0537,135.77,135.68,11.303]
[1642624456813,0.25,135.76,135.69,34.87659155]
[1642624457212,0.25,135.76,135.7,0.25]
[1642624457713,0.25,135.78,135.7,0.25]
[1642624458915,33.9169,135.79,135.7,0.25]
[1642624458916,22.8644,135.79,135.7,0.25]
[1642624459119,22.8644,135.79,135.72,38.78599593]
[1642624459315,22.662,135.83,135.73,3.196]
[1642624459715,33.7112,135.83,135.73,3.196]
[1642624460316,33.7112,135.83,135.73,13.706]
[1642624461316,33.7112,135.83,135.74,11.0483]
[1642624461720,35.53832602,135.83,135.73,13.706]
[1642624461921,109.22832602,135.83,135.73,0.25]
[1642624462119,111.28046624,135.83,135.72,38.78599593]
[1642624462317,11.2999,135.82,135.73,0.25]
[1642624462618,84.9899,135.82,135.72,49.83509593]
[1642624463618,84.9899,135.82,135.73,0.25]
[1642624463818,11.2999,135.82,135.73,0.25]
[1642624465722,11.2999,135.82,135.73,11.299]
[1642624465919,11.0499,135.82,135.73,14.245]
[1642624466122,22.662,135.83,135.73,20.93]
[1642624469426,22.662,135.83,135.73,14.245]
[1642624469924,22.662,135.83,135.74,10.51]
[1642624470223,22.662,135.83,135.75,38.53737001]
[1642624470427,2.05214022,135.85,135.76,13.9909]
[1642624470824,0.25,135.84,135.77,0.25]
[1642624473927,2.05214022,135.85,135.77,11.2957]
[1642624474125,2.05214022,135.85,135.78,44.19077325]
[1642624474328,2.05214022,135.85,135.78,63.89577325]
[1642624474526,2.05214022,135.88,135.78,65.5552947]
[1642624475329,2.05214022,135.88,135.8,11.0429]
[1642624475530,2.05214022,135.88,135.81,50.45502087]
[1642624475728,2.05214022,135.88,135.81,50.70502087]
[1642624476339,26.81034022,135.89,135.81,50.70502087]
[1642624476541,0.25,135.88,135.81,50.70502087]
[1642624477241,2.30214022,135.88,135.81,50.70502087]
[1642624477441,2.30214022,135.88,135.82,11.0412]
[1642624478048,2.30214022,135.88,135.81,44.70502087]
[1642624478241,2.30214022,135.88,135.79,2.944]
[1642624478441,2.05214022,135.87,135.8,11.043]
[1642624479440,2.05214022,135.87,135.79,51.30556881]
[1642624479441,2.05214022,135.87,135.79,48.36156881]
[1642624479641,0.25,135.86,135.78,13.454]
[1642624479859,2.30214022,135.86,135.74,2.944]
[1642624480064,25.29184022,135.86,135.74,2.944]
[1642624480261,25.29184022,135.86,135.75,0.25]
[1642624480262,2.05214022,135.84,135.75,0.25]
[1642624480462,13.10024022,135.84,135.75,40.89703383]
[1642624481263,13.10024022,135.84,135.75,40.64703383]
[1642624481464,13.10024022,135.84,135.75,51.69423383]
[1642624482164,0.25,135.83,135.75,51.69423383]
[1642624482966,2.05214022,135.84,135.76,0.25]
[1642624483168,2.05214022,135.85,135.76,20.2411]
[1642624483567,0.25,135.84,135.76,14.2411]
[1642624484569,0.25,135.84,135.79,11.0441]
[1642624484770,2.05214022,135.85,135.8,35.96834835]
[1642624484972,2.05214022,135.86,135.8,35.96834835]
[1642624485370,2.05214022,135.87,135.8,35.96834835]
[1642624485771,0.25,135.86,135.8,35.96834835]
[1642624486370,0.25,135.86,135.8,47.01164835]
[1642624488274,2.30214022,135.86,135.8,47.01164835]
[1642624488475,2.05214022,135.86,135.8,47.01164835]
[1642624490079,2.05214022,135.86,135.77,8.944]
[1642624490279,0.25,135.88,135.76,23.3539]
[1642624490280,2.30214022,135.85,135.76,23.3539]
[1642624490678,2.30214022,135.85,135.77,0.25]
[1642624490879,2.30214022,135.85,135.77,49.53667779]
[1642624491305,2.30214022,135.85,135.77,49.28667779]
[1642624491505,2.05214022,135.84,135.77,49.28667779]
[1642624491703,0.25,135.83,135.77,49.28667779]
[1642624492305,2.30214022,135.83,135.77,49.28667779]
[1642624492607,0.25,135.83,135.76,34.3998]
[1642624492805,0.25,135.83,135.74,21.5575]
[1642624493210,2.30214022,135.83,135.74,21.5575]
[1642624493607,2.05214022,135.82,135.74,57.86910204]
[1642624493809,0.25,135.81,135.74,57.86910204]
[1642624494006,2.05214022,135.82,135.74,57.86910204]
[1642624494205,0.25,135.81,135.74,57.86910204]
[1642624496409,2.05214022,135.82,135.74,57.86910204]
[1642624496810,0.25,135.81,135.75,11.2971]
[1642624497009,0.25,135.81,135.75,21.8071]
[1642624497611,2.05214022,135.82,135.75,21.8071]
[1642624497812,2.05214022,135.83,135.76,8.945]
[1642624498009,2.05214022,135.84,135.77,11.0452]
[1642624498214,2.05214022,135.84,135.77,11.2952]
[1642624498609,2.05214022,135.84,135.77,0.25]
[1642624498815,2.05214022,135.84,135.76,2.945]
[1642624499014,2.05214022,135.83,135.76,2.945]
[1642624500018,2.30214022,135.82,135.76,2.945]
[1642624501523,2.30214022,135.82,135.75,10.51]
[1642624502926,13.35144022,135.82,135.75,10.51]
[1642624503126,21.23956624,135.82,135.73,24.4879]
[1642624503326,2.05214022,135.81,135.71,21.5601]
[1642624503526,2.05214022,135.81,135.73,0.25]
[1642624504125,13.10224022,135.81,135.73,0.25]
[1642624505027,0.25,135.8,135.73,0.25]
[1642624505326,7.316,135.8,135.73,0.25]
[1642624506128,0.25,135.79,135.73,0.25]
[1642624506526,0.25,135.79,135.72,0.25]
[1642624507126,0.25,135.79,135.69,2.946]
[1642624507329,2.30214022,135.79,135.69,39.45666636]
[1642624508329,13.35384022,135.79,135.69,39.45666636]
[1642624508528,87.04384022,135.79,135.69,39.45666636]
[1642624508929,84.9917,135.79,135.69,39.45666636]
[1642624509131,24.1174,135.78,135.69,39.45666636]
[1642624509429,35.1702,135.78,135.69,39.45666636]
[1642624509629,35.1702,135.78,135.68,44.2183]
[1642624509930,0.25,135.77,135.68,10.26]
[1642624510129,12.63,135.77,135.68,10.26]
[1642624510631,12.63,135.77,135.68,57.19071656]
[1642624511030,17.6836,135.77,135.68,57.19071656]
[1642624511230,11.3036,135.77,135.68,57.19071656]
[1642624511630,11.3036,135.77,135.69,0.25]
[1642624511830,11.3036,135.77,135.69,6.25]
[1642624512029,11.0536,135.77,135.69,0.25]
[1642624513432,0.25,135.76,135.68,57.98371656]
[1642624515034,0.25,135.76,135.69,0.25]
[1642624516735,0.25,135.77,135.69,0.25]
[1642624517437,0.25,135.77,135.68,57.98371656]
[1642624517636,0.25,135.77,135.68,11.053]
[1642624518441,11.3035,135.77,135.68,11.053]
[1642624518645,11.3035,135.77,135.68,55.71441106]
[1642624519550,0.25,135.77,135.68,55.71441106]
[1642624519740,24.1174,135.78,135.68,55.71441106]
[1642624520141,24.1174,135.78,135.69,0.25]
[1642624520541,24.1174,135.78,135.68,11.053]
[1642624520742,44.61326624,135.78,135.66,36.41608661]
[1642624521045,8.05214022,135.77,135.66,23.2829]
[1642624521242,8.30214022,135.77,135.66,23.2829]
[1642624521443,22.918,135.76,135.65,24.7487]
[1642624521643,22.918,135.76,135.66,46.87468572]
[1642624521842,0.25,135.75,135.66,46.87468572]
[1642624522343,11.3057,135.75,135.66,46.87468572]
[1642624524247,0.25,135.75,135.67,0.25]
[1642624524872,0.25,135.75,135.65,37.33738661]
[1642624525068,0.25,135.75,135.66,6.0]
[1642624525267,0.25,135.75,135.65,35.2587]
[1642624526170,0.25,135.75,135.66,0.25]
[1642624526369,11.305,135.75,135.66,0.25]
[1642624526569,23.6318,135.74,135.66,0.25]
[1642624526770,23.6318,135.74,135.65,46.0637]
[1642624526975,23.6318,135.74,135.65,10.51]
[1642624527176,0.25,135.73,135.63,5.02568661]
[1642624527372,13.378,135.73,135.62,12.58868661]
[1642624527672,23.7613,135.72,135.62,12.58868661]
[1642624527872,34.8194,135.72,135.63,44.02133721]
[1642624528076,0.25,135.71,135.62,23.64658661]
[1642624528775,0.25,135.71,135.63,2.32868661]
[1642624528972,0.25,135.71,135.63,13.38568661]
[1642624529176,0.25,135.71,135.63,12.88568661]
[1642624529374,0.25,135.71,135.63,11.057]
[1642624531077,34.8194,135.72,135.63,11.057]
[1642624531281,23.7613,135.72,135.63,14.005]
[1642624531479,23.7613,135.72,135.64,10.76]
[1642624531681,23.7613,135.72,135.66,11.0536]
[1642624531978,10.8917,135.75,135.67,45.84897425]
[1642624532177,22.6647,135.77,135.67,46.09897425]
[1642624532979,11.0551,135.75,135.67,46.09897425]
[1642624533392,22.6647,135.77,135.67,46.09897425]
[1642624533589,0.25,135.76,135.67,46.09897425]
[1642624534393,11.3042,135.76,135.67,46.09897425]
[1642624535192,11.3042,135.76,135.67,57.15287425]
[1642624535390,0.25,135.76,135.67,57.15287425]
[1642624540920,0.25,135.76,135.67,58.55246861]
[1642624541322,0.25,135.76,135.68,2.947]
[1642624541524,23.8607,135.79,135.7,11.0508]
[1642624541723,1.3237925,135.8,135.71,0.25]
[1642624542722,1.3237925,135.8,135.71,73.94]
[1642624542922,22.7773,135.82,135.73,11.049]
[1642624543323,22.7773,135.82,135.74,0.25]
[1642624543523,0.25,135.81,135.72,79.88023622]
[1642624544130,0.25,135.81,135.73,0.25]
[1642624544325,22.7773,135.82,135.73,11.2983]
[1642624545226,22.7773,135.82,135.73,11.0483]
[1642624545625,0.25,135.81,135.73,11.0483]
[1642624547827,22.7773,135.82,135.73,11.0483]
[1642624548027,22.7773,135.82,135.73,13.9943]
[1642624548828,0.25,135.81,135.73,13.9943]
[1642624549129,0.25,135.81,135.73,11.0483]
[1642624549731,22.7773,135.82,135.73,21.5583]
[1642624549930,22.7773,135.82,135.73,22.95809987]
[1642624550131,22.7773,135.82,135.74,0.25]
[1642624550332,22.7773,135.82,135.76,11.0462]
[1642624550731,0.25,135.81,135.76,11.0462]
[1642624551128,22.7773,135.82,135.76,11.0462]
[1642624551529,22.7773,135.82,135.77,48.5849983]
[1642624551933,22.7773,135.82,135.77,59.6306983]
[1642624552230,23.0987,135.84,135.77,59.6306983]
[1642624553733,0.25,135.83,135.77,59.6306983]
[1642624554134,10.51,135.89,135.77,59.6306983]
[1642624554334,22.6723,135.89,135.78,27.8021]
[1642624554538,6.0,135.88,135.8,11.0434]
[1642624555034,6.0,135.88,135.78,27.5521]
[1642624555334,22.6626,135.87,135.78,27.5521]
[1642624555934,22.6626,135.87,135.79,0.25]
[1642624556135,22.6626,135.87,135.8,11.0432]
[1642624556335,23.453,135.9,135.81,0.25]
[1642624556534,23.453,135.9,135.81,8.466]
[1642624556734,0.25,135.89,135.82,42.90093892]
[1642624557334,0.25,135.89,135.82,53.94263892]
[1642624560937,23.453,135.9,135.82,53.94263892]
[1642624561238,23.453,135.9,135.83,0.25]
[1642624562643,0.25,135.89,135.8,36.8021]
[1642624562843,0.25,135.89,135.78,33.3424]
[1642624563043,2.07712602,135.89,135.78,33.3424]
[1642624563652,2.07712602,135.89,135.78,52.15277431]
[1642624564050,75.76712602,135.89,135.78,52.15277431]
[1642624564449,86.81112602,135.89,135.78,63.19737431]
[1642624564854,84.984,135.89,135.78,63.19737431]
[1642624565050,11.294,135.89,135.78,63.19737431]
[1642624566751,84.984,135.89,135.78,63.19737431]
[1642624566954,84.984,135.89,135.78,21.5546]
[1642624567153,6.0,135.88,135.76,2.944]
[1642624567355,11.0481,135.85,135.74,13.454]
[1642624567555,11.0481,135.85,135.75,6.0]
[1642624567753,0.25,135.84,135.75,6.0]
[1642624568754,0.25,135.86,135.75,6.0]
[1642624568955,10.76,135.86,135.75,6.0]
[1642624569357,11.0486,135.83,135.75,6.0]
[1642624569756,0.25,135.82,135.75,6.0]
[1642624570377,0.25,135.82,135.74,49.61352756]
[1642624570776,11.0494,135.82,135.74,49.61352756]
[1642624570976,22.6638,135.85,135.75,0.25]
[1642624571276,10.12923972,135.88,135.75,0.25]
[1642624571277,6.0,135.88,135.75,22.06]
[1642624571476,24.7605,135.88,135.75,47.98389987]
[1642624571675,24.7605,135.88,135.75,60.95974673]
[1642624571876,24.7605,135.88,135.76,2.945]
[1642624572076,24.7605,135.88,135.78,11.0448]
[1642624572277,24.7605,135.88,135.79,42.00848887]
[1642624572478,24.7605,135.88,135.79,48.00848887]
[1642624573078,23.4026,135.91,135.8,10.51]
[1642624573278,4.12923972,135.93,135.81,14.2359]
[1642624573479,23.2285,135.94,135.82,10.51]
[1642624573681,23.2285,135.94,135.83,27.2848]
[1642624573878,23.2285,135.94,135.84,47.55998091]
[1642624574080,23.2285,135.94,135.84,54.70878078]
[1642624574280,23.2285,135.94,135.85,0.25]
[1642624574679,0.25,135.93,135.85,0.25]
[1642624574883,0.25,135.95,135.85,0.25]
[1642624575577,0.25,135.95,135.85,11.2881]
[1642624575978,0.25,135.95,135.86,2.943]
[1642624576177,0.25,135.95,135.87,0.25]
[1642624576378,49.61124121,135.96,135.88,11.0369]
[1642624576580,23.9916,135.96,135.89,49.49241847]
[1642624576777,23.9916,135.96,135.89,49.74241847]
[1642624577987,23.9916,135.96,135.89,56.16941847]
[1642624578790,22.6421,135.97,135.89,67.20541847]
[1642624579290,15.09743972,136.01,135.89,67.20541847]
[1642624579490,48.31349778,136.0,135.9,2.942]
[1642624579690,48.56349778,136.0,135.9,2.942]
[1642624579991,59.07349778,136.0,135.9,2.942]
[1642624580694,70.10769778,136.0,135.91,0.25]
[1642624586598,143.79769778,136.0,135.91,0.25]
[1642624586798,70.10769778,136.0,135.91,0.25]
[1642624587907,70.10769778,136.0,135.9,13.977]
[1642624588198,70.10769778,136.0,135.9,2.942]
[1642624588400,73.69,135.99,135.9,2.942]
[1642624588627,11.0385,135.96,135.86,13.452]
[1642624588800,0.25,135.95,135.87,6.25]
[1642624589001,0.25,135.95,135.87,0.25]
[1642624589400,25.075,135.95,135.87,0.25]
[1642624589999,98.765,135.95,135.87,0.25]
[1642624590200,11.0385,135.94,135.87,0.25]
[1642624590407,11.0385,135.94,135.86,6.0]
[1642624590801,0.25,135.93,135.86,6.0]
[1642624591000,0.25,135.93,135.83,2.943]
[1642624591703,0.25,135.93,135.84,0.25]
[1642624591901,11.0405,135.92,135.84,0.25]
[1642624592299,0.25,135.91,135.84,0.25]
[1642624592905,0.25,135.91,135.82,0.25]
[1642624593305,73.94,135.92,135.81,51.3395615]
[1642624593503,11.0429,135.89,135.81,48.3965615]
[1642624593705,0.25,135.88,135.81,48.3965615]
[1642624596607,11.2934,135.88,135.81,48.3965615]
[1642624596808,11.0434,135.88,135.81,48.3965615]
[1642624597009,84.7334,135.88,135.81,48.3965615]
[1642624597210,11.0434,135.88,135.81,48.3965615]
[1642624602823,97.7596,135.9,135.81,48.3965615]
[1642624603222,0.25,135.89,135.78,51.14874686]
[1642624603420,0.25,135.89,135.79,6.25]
[1642624604246,0.25,135.89,135.8,38.26906321]
[1642624604444,11.2926,135.89,135.8,44.08806321]
[1642624604642,24.0696,135.9,135.81,0.25]
[1642624604842,22.6904,135.92,135.82,10.51]
[1642624605043,22.6904,135.92,135.83,8.943]
[1642624605243,23.0189,135.95,135.83,25.321]
[1642624605442,23.0189,135.95,135.83,26.71494955]
[1642624605841,23.0189,135.95,135.83,26.45494955]
[1642624606344,34.0572,135.95,135.85,11.0388]
[1642624606542,34.0572,135.95,135.87,41.64489039]
[1642624606744,107.7472,135.95,135.87,41.64489039]
[1642624608042,107.7472,135.95,135.88,0.25]
[1642624608043,34.0572,135.95,135.88,0.25]
[1642624608343,34.0572,135.95,135.87,41.64489039]
[1642624608743,34.0572,135.95,135.88,0.25]
[1642624609142,11.0383,135.95,135.88,0.25]
[1642624609543,11.0383,135.95,135.87,11.0375]
[1642624609743,0.25,135.94,135.84,2.943]
[1642624609944,11.0397,135.93,135.85,6.25]
[1642624610143,11.0397,135.93,135.85,0.25]
[1642624610545,10.5397,135.93,135.85,0.25]
[1642624610744,10.5397,135.93,135.84,2.943]
[1642624610745,0.25,135.92,135.84,2.943]
[1642624610949,11.042,135.9,135.84,2.943]
[1642624611545,0.25,135.89,135.84,2.943]
[1642624611745,6.25,135.92,135.84,2.943]
[1642624612147,0.25,135.92,135.84,2.943]
[1642624612548,11.043,135.89,135.8,2.943]
[1642624612753,0.25,135.88,135.81,0.25]
[1642624612951,0.25,135.88,135.8,6.25]
[1642624613351,0.25,135.88,135.8,50.47675283]
[1642624614051,0.25,135.9,135.8,50.47675283]
[1642624614251,45.5437,135.92,135.8,50.47675283]
[1642624614252,0.25,135.91,135.8,50.47675283]
[1642624616157,45.5437,135.92,135.8,60.98675283]
[1642624616356,45.5437,135.92,135.81,2.944]
[1642624616756,45.5437,135.92,135.82,0.25]
[1642624616955,45.5437,135.92,135.83,2.943]
[1642624617356,45.5437,135.92,135.84,0.25]
[1642624617557,0.25,135.91,135.81,2.943]
[1642624617857,0.25,135.91,135.82,0.25]
[1642624624261,45.5437,135.92,135.82,0.25]
[1642624624463,45.5437,135.92,135.83,2.943]
[1642624624865,119.2337,135.92,135.84,0.25]
[1642624625666,45.5437,135.92,135.84,0.25]
[1642624625865,45.5437,135.92,135.81,4.33794955]
[1642624625866,45.5437,135.92,135.86,43.08707139]
[1642624626269,45.5437,135.92,135.87,0.25]
[1642624627572,45.5437,135.92,135.88,2.943]
[1642624627770,45.5437,135.92,135.89,0.25]
[1642624628176,45.5437,135.92,135.9,6.06439994]
[1642624629172,45.5437,135.92,135.87,2.943]
[1642624629373,45.5437,135.92,135.85,10.51]
[1642624630603,45.5437,135.92,135.86,0.25]
[1642624631804,45.5437,135.92,135.85,10.51]
[1642624632003,119.2337,135.92,135.83,2.943]
[1642624632204,0.25,135.91,135.81,2.943]
[1642624632408,0.25,135.91,135.8,19.453]
[1642624633605,6.25,135.91,135.81,0.25]
[1642624634202,8.07712602,135.91,135.81,0.25]
[1642624634506,73.69,135.9,135.81,0.25]
[1642624634705,0.25,135.89,135.81,0.25]
[1642624637208,73.69,135.88,135.81,0.25]
[1642624637416,73.69,135.88,135.8,0.25]
[1642624638917,6.25,135.89,135.8,0.25]
[1642624639119,0.25,135.89,135.8,0.25]
[1642624639318,0.25,135.9,135.8,0.25]
[1642624639719,6.25,135.91,135.79,25.6931]
[1642624639919,6.25,135.91,135.79,22.7491]
[1642624640624,6.25,135.91,135.8,0.25]
[1642624640826,73.69,135.9,135.8,0.25]
[1642624641256,0.25,135.89,135.8,0.25]
[1642624641855,0.25,135.89,135.79,22.7491]
[1642624642452,6.25,135.89,135.79,22.7491]
[1642624642652,79.94,135.89,135.79,22.7491]
[1642624642852,73.94,135.89,135.79,22.7491]
[1642624643152,0.25,135.89,135.79,22.7491]
[1642624643556,6.25,135.91,135.79,22.7491]
[1642624643954,16.76,135.91,135.79,22.7491]
[1642624644155,18.58712602,135.91,135.79,22.7491]
[1642624644758,10.12923972,135.91,135.8,0.25]
[1642624644956,49.67293972,135.92,135.81,13.454]
[1642624645157,45.5437,135.92,135.81,13.454]
[1642624645357,45.5437,135.92,135.82,37.76744539]